[Event "*** Titled Tuesday Blitz"]
[Site "Chess.com"]
[Date "2021.04.20"]
[Round "2"]
[White "Orest_Vovk"]
[Black "olksuna"]
[Result "1/2-1/2"]
[WhiteElo "2458"]
[BlackElo "2663"]
[TimeControl "180+1"]
[EndTime "10:18:28 PDT"]
[Termination "Game drawn by repetition"]

1. h3 {[%clk 0:03:00.9]} 1... e5 {[%clk 0:02:58.4]} 2. d4 {[%clk 0:02:59.5]}
2... exd4 {[%clk 0:02:56.5]} 3. Qxd4 {[%clk 0:03:00.4]} 3... Nf6 {[%clk
0:02:56.4]} 4. Bg5 {[%clk 0:02:56.4]} 4... Be7 {[%clk 0:02:53.9]} 5. Nf3 {[%clk
0:02:54.8]} 5... d5 {[%clk 0:02:53]} 6. e3 {[%clk 0:02:46.1]} 6... c5 {[%clk
0:02:48.8]} 7. Bb5+ {[%clk 0:02:39.1]} 7... Bd7 {[%clk 0:02:34.7]} 8. Bxd7+
{[%clk 0:02:38.2]} 8... Qxd7 {[%clk 0:02:35.6]} 9. Qh4 {[%clk 0:02:32]} 9... O-O
{[%clk 0:02:28.5]} 10. c3 {[%clk 0:02:19.6]} 10... h6 {[%clk 0:02:24.9]} 11.
Bxf6 {[%clk 0:02:19.6]} 11... Bxf6 {[%clk 0:02:25.8]} 12. Qg4 {[%clk 0:02:19.3]}
12... Qb5 {[%clk 0:02:21.9]} 13. b3 {[%clk 0:02:07.2]} 13... Nc6 {[%clk
0:02:19.9]} 14. Qf5 {[%clk 0:01:55.7]} 14... d4 {[%clk 0:02:06.1]} 15. cxd4
{[%clk 0:01:38.1]} 15... Qb4+ {[%clk 0:02:03.1]} 16. Nbd2 {[%clk 0:01:37.2]}
16... cxd4 {[%clk 0:02:02.6]} 17. Rd1 {[%clk 0:01:19]} 17... dxe3 {[%clk
0:01:58.6]} 18. fxe3 {[%clk 0:01:19]} 18... Rfe8 {[%clk 0:01:56]} 19. O-O {[%clk
0:01:13.4]} 19... Rxe3 {[%clk 0:01:51.3]} 20. Nc4 {[%clk 0:01:12.5]} 20... Re7
{[%clk 0:01:42.8]} 21. Kh1 {[%clk 0:00:55.6]} 21... a6 {[%clk 0:01:23.4]} 22.
Rd3 {[%clk 0:00:46.2]} 22... Qb5 {[%clk 0:01:16.8]} 23. Rd5 {[%clk 0:00:32.1]}
23... Qb4 {[%clk 0:01:17.1]} 24. Rd3 {[%clk 0:00:32.1]} 24... Rae8 {[%clk
0:01:08.2]} 25. a3 {[%clk 0:00:24.5]} 25... Qb5 {[%clk 0:00:49]} 26. Qxb5 {[%clk
0:00:24.3]} 26... axb5 {[%clk 0:00:48.5]} 27. Nd6 {[%clk 0:00:25.2]} 27... Rd8
{[%clk 0:00:45.5]} 28. Rfd1 {[%clk 0:00:25.7]} 28... Red7 {[%clk 0:00:44.6]} 29.
R3d2 {[%clk 0:00:19.7]} 29... Be7 {[%clk 0:00:44.6]} 30. Nxb5 {[%clk 0:00:17.1]}
30... Rxd2 {[%clk 0:00:39.4]} 31. Rxd2 {[%clk 0:00:18]} 31... Rxd2 {[%clk
0:00:35.7]} 32. Nxd2 {[%clk 0:00:18.9]} 32... f5 {[%clk 0:00:35.9]} 33. Nc4
{[%clk 0:00:18.7]} 33... g6 {[%clk 0:00:23.3]} 34. Nbd6 {[%clk 0:00:18.5]} 34...
Nd8 {[%clk 0:00:21.1]} 35. a4 {[%clk 0:00:16.7]} 35... Kg7 {[%clk 0:00:20.2]}
36. Nc8 {[%clk 0:00:16.9]} 36... Bc5 {[%clk 0:00:19.2]} 37. N8b6 {[%clk
0:00:15.2]} 37... Kf7 {[%clk 0:00:15.3]} 38. Nd7 {[%clk 0:00:14.1]} 38... Bb4
{[%clk 0:00:12.5]} 39. Nde5+ {[%clk 0:00:13.6]} 39... Kf6 {[%clk 0:00:11.5]} 40.
Nd3 {[%clk 0:00:14.5]} 40... Bf8 {[%clk 0:00:09.3]} 41. b4 {[%clk 0:00:14.9]}
41... g5 {[%clk 0:00:08.3]} 42. b5 {[%clk 0:00:15.1]} 42... Ke6 {[%clk 0:00:08]}
43. a5 {[%clk 0:00:15.2]} 43... f4 {[%clk 0:00:08.5]} 44. a6 {[%clk 0:00:14.8]}
44... bxa6 {[%clk 0:00:09.4]} 45. bxa6 {[%clk 0:00:15.6]} 45... Nc6 {[%clk
0:00:09.8]} 46. Na5 {[%clk 0:00:12.5]} 46... Na7 {[%clk 0:00:09.2]} 47. Nb7
{[%clk 0:00:11]} 47... Kd5 {[%clk 0:00:09.1]} 48. h4 {[%clk 0:00:10.3]} 48...
Ke4 {[%clk 0:00:08.5]} 49. Ndc5+ {[%clk 0:00:10.1]} 49... Bxc5 {[%clk
0:00:07.1]} 50. Nxc5+ {[%clk 0:00:11]} 50... Kf5 {[%clk 0:00:07]} 51. hxg5
{[%clk 0:00:09.8]} 51... hxg5 {[%clk 0:00:07.9]} 52. Kg1 {[%clk 0:00:10.3]}
52... Ke5 {[%clk 0:00:08.3]} 53. Kf2 {[%clk 0:00:10.5]} 53... Kd5 {[%clk
0:00:08.4]} 54. Nd7 {[%clk 0:00:10.3]} 54... Ke6 {[%clk 0:00:07.6]} 55. Nb6
{[%clk 0:00:10.1]} 55... Kf5 {[%clk 0:00:06.4]} 56. Nc4 {[%clk 0:00:10.3]} 56...
g4 {[%clk 0:00:06.3]} 57. Nd6+ {[%clk 0:00:10.2]} 57... Ke5 {[%clk 0:00:06.2]}
58. Nf7+ {[%clk 0:00:09.9]} 58... Kf6 {[%clk 0:00:06]} 59. Nd6 {[%clk
0:00:09.6]} 59... Ke5 {[%clk 0:00:06.6]} 60. Nc4+ {[%clk 0:00:09.4]} 60... Kd4
{[%clk 0:00:06.6]} 61. Nd6 {[%clk 0:00:09]} 61... Ke5 {[%clk 0:00:06.7]} 1/2-1/2

[Event "*** Titled Tuesday Blitz"]
[Site "Chess.com"]
[Date "2021.04.20"]
[Round "2"]
[White "Cambek64"]
[Black "NicoChasin"]
[Result "1/2-1/2"]
[WhiteElo "2482"]
[BlackElo "2688"]
[TimeControl "180+1"]
[EndTime "10:18:30 PDT"]
[Termination "Game drawn by repetition"]

1. e4 {[%clk 0:02:45.7]} 1... c5 {[%clk 0:02:59.2]} 2. Nc3 {[%clk 0:02:35.8]}
2... Nc6 {[%clk 0:02:58.5]} 3. d3 {[%clk 0:02:35]} 3... g6 {[%clk 0:02:58.7]} 4.
Be3 {[%clk 0:02:34.7]} 4... Bg7 {[%clk 0:02:57.5]} 5. Bxc5 {[%clk 0:02:33.8]}
5... Qa5 {[%clk 0:02:56.8]} 6. Be3 {[%clk 0:02:33]} 6... Bxc3+ {[%clk
0:02:56.8]} 7. bxc3 {[%clk 0:02:32.7]} 7... Qxc3+ {[%clk 0:02:57.7]} 8. Bd2
{[%clk 0:02:32.8]} 8... Qc5 {[%clk 0:02:58.2]} 9. Nf3 {[%clk 0:02:32.5]} 9...
Nf6 {[%clk 0:02:58]} 10. Be2 {[%clk 0:02:30.4]} 10... d5 {[%clk 0:02:58.5]} 11.
exd5 {[%clk 0:02:27.3]} 11... Nxd5 {[%clk 0:02:58.8]} 12. c4 {[%clk 0:02:24.1]}
12... Nf6 {[%clk 0:02:56.2]} 13. O-O {[%clk 0:02:22.3]} 13... O-O {[%clk
0:02:56.7]} 14. Bc3 {[%clk 0:02:19.4]} 14... Bf5 {[%clk 0:02:53.4]} 15. d4
{[%clk 0:02:18.7]} 15... Qa3 {[%clk 0:02:51.7]} 16. Qb3 {[%clk 0:02:14.8]} 16...
Qxb3 {[%clk 0:02:51.6]} 17. axb3 {[%clk 0:02:14.7]} 17... Ne4 {[%clk 0:02:52.3]}
18. Bb2 {[%clk 0:01:51.2]} 18... b6 {[%clk 0:02:51]} 19. d5 {[%clk 0:01:44.3]}
19... Nb4 {[%clk 0:02:47]} 20. Nd4 {[%clk 0:01:42.5]} 20... Bd7 {[%clk
0:02:46.5]} 21. Rfd1 {[%clk 0:01:38.5]} 21... Rfc8 {[%clk 0:02:44.7]} 22. f3
{[%clk 0:01:33.7]} 22... Nc5 {[%clk 0:02:44.1]} 23. Bc3 {[%clk 0:01:31]} 23...
a5 {[%clk 0:02:43.1]} 24. Kf2 {[%clk 0:01:25.7]} 24... Kf8 {[%clk 0:02:40.9]}
25. Rd2 {[%clk 0:01:23.8]} 25... Be8 {[%clk 0:02:36.4]} 26. Bxb4 {[%clk
0:01:16.6]} 26... axb4 {[%clk 0:02:35.9]} 27. Rda2 {[%clk 0:01:17.3]} 27... Rxa2
{[%clk 0:02:33.4]} 28. Rxa2 {[%clk 0:01:17]} 28... Rc7 {[%clk 0:02:31.3]} 29.
Ke3 {[%clk 0:01:13]} 29... Kg7 {[%clk 0:02:30.8]} 30. Ra8 {[%clk 0:01:05.4]}
30... Bd7 {[%clk 0:02:30.7]} 31. Rb8 {[%clk 0:00:59.9]} 31... Nb7 {[%clk
0:02:24.2]} 32. Nc2 {[%clk 0:00:51.5]} 32... b5 {[%clk 0:02:23.4]} 33. Nxb4
{[%clk 0:00:51]} 33... Na5 {[%clk 0:02:16.9]} 34. Nc6 {[%clk 0:00:39.7]} 34...
Bxc6 {[%clk 0:02:11.9]} 35. dxc6 {[%clk 0:00:39.6]} 35... bxc4 {[%clk
0:02:11.9]} 36. bxc4 {[%clk 0:00:31.8]} 36... Rxc6 {[%clk 0:02:11.8]} 37. Rb4
{[%clk 0:00:31.4]} 37... Re6+ {[%clk 0:02:10.8]} 38. Kd2 {[%clk 0:00:31.4]}
38... Nc6 {[%clk 0:02:10.8]} 39. Rb6 {[%clk 0:00:27.9]} 39... Rd6+ {[%clk
0:02:10.3]} 40. Kc3 {[%clk 0:00:27.4]} 40... Nd4 {[%clk 0:01:56.7]} 41. Rxd6
{[%clk 0:00:26.3]} 41... Nxe2+ {[%clk 0:01:57.1]} 42. Kd2 {[%clk 0:00:23]} 42...
exd6 {[%clk 0:01:57.2]} 43. Kxe2 {[%clk 0:00:23.3]} 43... Kf6 {[%clk 0:01:58.1]}
44. Ke3 {[%clk 0:00:22.2]} 44... Ke5 {[%clk 0:01:56.1]} 45. f4+ {[%clk
0:00:22.1]} 45... Kf5 {[%clk 0:01:56.3]} 46. Kf3 {[%clk 0:00:21.7]} 46... h5
{[%clk 0:01:55.9]} 47. g3 {[%clk 0:00:22]} 47... f6 {[%clk 0:01:34.4]} 48. h3
{[%clk 0:00:22.4]} 48... Ke6 {[%clk 0:01:15]} 49. g4 {[%clk 0:00:17.6]} 49... f5
{[%clk 0:01:09.7]} 50. gxf5+ {[%clk 0:00:15.5]} 50... Kxf5 {[%clk 0:01:09.2]}
51. Ke3 {[%clk 0:00:12]} 51... Kf6 {[%clk 0:00:37.4]} 52. Ke4 {[%clk 0:00:11.9]}
52... Ke6 {[%clk 0:00:37.3]} 53. Kd4 {[%clk 0:00:12.1]} 53... Ke7 {[%clk
0:00:36.4]} 54. Kd5 {[%clk 0:00:12.2]} 54... Kd7 {[%clk 0:00:36.5]} 55. Ke4
{[%clk 0:00:12.3]} 55... Kc7 {[%clk 0:00:33.5]} 56. Kd5 {[%clk 0:00:12.4]} 56...
Kd7 {[%clk 0:00:33.4]} 57. Kd4 {[%clk 0:00:11.5]} 57... Kc6 {[%clk 0:00:33.5]}
58. Ke4 {[%clk 0:00:11.1]} 58... Kc5 {[%clk 0:00:23]} 59. Kd3 {[%clk 0:00:11.5]}
59... d5 {[%clk 0:00:20.6]} 60. cxd5 {[%clk 0:00:11.3]} 60... Kxd5 {[%clk
0:00:20.8]} 61. Ke3 {[%clk 0:00:11.6]} 61... Kd6 {[%clk 0:00:20.9]} 62. Ke4
{[%clk 0:00:10.8]} 62... Ke6 {[%clk 0:00:21.1]} 63. Ke3 {[%clk 0:00:11.5]} 63...
Kf5 {[%clk 0:00:22]} 64. Kf3 {[%clk 0:00:11.9]} 64... h4 {[%clk 0:00:20]} 65.
Ke3 {[%clk 0:00:11.5]} 65... Kf6 {[%clk 0:00:20.1]} 66. Kf3 {[%clk 0:00:11.7]}
66... Kf5 {[%clk 0:00:20.4]} 67. Ke3 {[%clk 0:00:11.8]} 67... Ke6 {[%clk
0:00:19.9]} 68. Kf3 {[%clk 0:00:11.8]} 68... Kf5 {[%clk 0:00:19.9]} 1/2-1/2

[Event "*** Titled Tuesday Blitz"]
[Site "Chess.com"]
[Date "2021.04.20"]
[Round "2"]
[White "kekic76"]
[Black "enriquetejedor"]
[Result "0-1"]
[WhiteElo "2338"]
[BlackElo "2632"]
[TimeControl "180+1"]
[EndTime "10:18:32 PDT"]
[Termination "enriquetejedor won on time"]

1. e4 {[%clk 0:02:56]} 1... c5 {[%clk 0:02:02.8]} 2. Nf3 {[%clk 0:02:55.1]} 2...
d6 {[%clk 0:01:58.9]} 3. d4 {[%clk 0:02:54.5]} 3... cxd4 {[%clk 0:01:59.8]} 4.
Nxd4 {[%clk 0:02:54.7]} 4... Nf6 {[%clk 0:01:56.7]} 5. Nc3 {[%clk 0:02:54.6]}
5... g6 {[%clk 0:01:54]} 6. h3 {[%clk 0:02:45.7]} 6... Bg7 {[%clk 0:01:54.2]} 7.
Be3 {[%clk 0:02:45.6]} 7... O-O {[%clk 0:01:54.2]} 8. Qd2 {[%clk 0:02:45.4]}
8... Nc6 {[%clk 0:01:54.2]} 9. Bc4 {[%clk 0:02:39.1]} 9... Bd7 {[%clk
0:01:53.3]} 10. Bb3 {[%clk 0:02:36.5]} 10... Rc8 {[%clk 0:01:52]} 11. O-O {[%clk
0:02:33.7]} 11... Na5 {[%clk 0:01:46.7]} 12. Bh6 {[%clk 0:02:30.5]} 12... Nc4
{[%clk 0:01:25.8]} 13. Bxc4 {[%clk 0:02:29.4]} 13... Rxc4 {[%clk 0:01:26.7]} 14.
Bxg7 {[%clk 0:02:29.2]} 14... Kxg7 {[%clk 0:01:27.6]} 15. Rfe1 {[%clk
0:02:29.1]} 15... Qb6 {[%clk 0:01:26.2]} 16. Nb3 {[%clk 0:02:27.7]} 16... Rfc8
{[%clk 0:01:22]} 17. Rac1 {[%clk 0:02:22]} 17... a5 {[%clk 0:01:17.9]} 18. Nd5
{[%clk 0:01:49.4]} 18... Nxd5 {[%clk 0:01:12.8]} 19. exd5 {[%clk 0:01:49]} 19...
a4 {[%clk 0:01:07]} 20. Na1 {[%clk 0:01:48]} 20... Qxb2 {[%clk 0:01:04.9]} 21.
Rxe7 {[%clk 0:01:45.3]} 21... Bf5 {[%clk 0:01:04.4]} 22. g4 {[%clk 0:01:39.6]}
22... Rd4 {[%clk 0:00:47.3]} 23. Qe1 {[%clk 0:01:20.4]} 23... Bxg4 {[%clk
0:00:11.7]} 24. hxg4 {[%clk 0:01:16.2]} 24... Rxg4+ {[%clk 0:00:12.6]} 25. Kf1
{[%clk 0:01:06.4]} 25... Qf6 {[%clk 0:00:10.7]} 26. Re3 {[%clk 0:00:58]} 26...
Rh4 {[%clk 0:00:05.6]} 27. Qd2 {[%clk 0:00:56.5]} 27... Rcc4 {[%clk 0:00:02.5]}
28. c3 {[%clk 0:00:53.9]} 28... Rcg4 {[%clk 0:00:02.6]} 29. Ke2 {[%clk
0:00:51.9]} 29... Rf4 {[%clk 0:00:02.6]} 30. Rf1 {[%clk 0:00:51.4]} 30... Rh2
{[%clk 0:00:02.8]} 31. Ke1 {[%clk 0:00:51]} 31... Qf5 {[%clk 0:00:02.3]} 32. Nc2
{[%clk 0:00:49.1]} 32... h5 {[%clk 0:00:02.6]} 33. Nd4 {[%clk 0:00:30]} 33...
Qf6 {[%clk 0:00:02.6]} 34. Nc2 {[%clk 0:00:10.1]} 34... g5 {[%clk 0:00:03.1]}
35. Nd4 {[%clk 0:00:08.8]} 35... h4 {[%clk 0:00:02.8]} 36. Qd3 {[%clk
0:00:08.4]} 36... h3 {[%clk 0:00:02.2]} 37. Rf3 {[%clk 0:00:06.6]} 37... Rxf3
{[%clk 0:00:02.3]} 38. Qxf3 {[%clk 0:00:06]} 38... Qxf3 {[%clk 0:00:02.6]} 39.
Nxf3 {[%clk 0:00:06.7]} 39... Rg2 {[%clk 0:00:03.5]} 40. Rh1 {[%clk 0:00:05.5]}
40... g4 {[%clk 0:00:03.7]} 41. Nh4 {[%clk 0:00:04.7]} 41... Kf6 {[%clk
0:00:02]} 42. Nxg2 {[%clk 0:00:03.8]} 42... hxg2 {[%clk 0:00:02.9]} 43. Rg1
{[%clk 0:00:04.7]} 43... Ke5 {[%clk 0:00:03]} 44. Rxg2 {[%clk 0:00:04.9]} 44...
f5 {[%clk 0:00:03.9]} 45. c4 {[%clk 0:00:04.7]} 45... Kd4 {[%clk 0:00:04.2]} 46.
Ke2 {[%clk 0:00:04]} 46... Kxc4 {[%clk 0:00:04.2]} 47. Ke3 {[%clk 0:00:04]}
47... Kxd5 {[%clk 0:00:03.4]} 48. Kf4 {[%clk 0:00:03.6]} 48... Ke6 {[%clk
0:00:04]} 49. f3 {[%clk 0:00:03.5]} 49... gxf3 {[%clk 0:00:04.4]} 50. Kxf3
{[%clk 0:00:04.4]} 50... Kd5 {[%clk 0:00:04.8]} 51. Rb2 {[%clk 0:00:04.1]} 51...
Kc6 {[%clk 0:00:04.5]} 52. Kf4 {[%clk 0:00:03.7]} 52... b5 {[%clk 0:00:04.9]}
53. a3 {[%clk 0:00:01.4]} 53... Kc5 {[%clk 0:00:05.8]} 54. Kxf5 {[%clk
0:00:01.5]} 54... d5 {[%clk 0:00:05.5]} 55. Ke5 {[%clk 0:00:01.3]} 55... Kc4
{[%clk 0:00:04.8]} 56. Rb4+ {[%clk 0:00:01]} 56... Kc5 {[%clk 0:00:05.4]} 0-1

[Event "*** Titled Tuesday Blitz"]
[Site "Chess.com"]
[Date "2021.04.20"]
[Round "2"]
[White "Murad_Ibrahimli"]
[Black "Problematique_99"]
[Result "1-0"]
[WhiteElo "2745"]
[BlackElo "2507"]
[TimeControl "180+1"]
[EndTime "10:18:34 PDT"]
[Termination "Murad_Ibrahimli won by resignation"]

1. d4 {[%clk 0:03:00.9]} 1... Nf6 {[%clk 0:02:59.5]} 2. Bg5 {[%clk 0:03:01.1]}
2... d5 {[%clk 0:02:58.1]} 3. Nd2 {[%clk 0:02:59.4]} 3... Bf5 {[%clk 0:02:55.2]}
4. e3 {[%clk 0:02:57.5]} 4... e6 {[%clk 0:02:52.1]} 5. Ngf3 {[%clk 0:02:55.8]}
5... Nbd7 {[%clk 0:02:51]} 6. Bd3 {[%clk 0:02:52]} 6... Bxd3 {[%clk 0:02:50.4]}
7. cxd3 {[%clk 0:02:52.9]} 7... c6 {[%clk 0:02:48]} 8. O-O {[%clk 0:02:51.7]}
8... Be7 {[%clk 0:02:46.5]} 9. e4 {[%clk 0:02:51.2]} 9... O-O {[%clk 0:02:45.3]}
10. Re1 {[%clk 0:02:45.7]} 10... a5 {[%clk 0:02:38.9]} 11. h3 {[%clk 0:02:40]}
11... h6 {[%clk 0:02:37.2]} 12. Bf4 {[%clk 0:02:38.6]} 12... a4 {[%clk
0:02:33.5]} 13. a3 {[%clk 0:02:38]} 13... Qb6 {[%clk 0:02:31.4]} 14. Rb1 {[%clk
0:02:29.4]} 14... Qb5 {[%clk 0:02:28.3]} 15. Nf1 {[%clk 0:02:14.1]} 15... Rfd8
{[%clk 0:02:22.6]} 16. e5 {[%clk 0:01:57.3]} 16... Ne8 {[%clk 0:02:16.4]} 17.
Ng3 {[%clk 0:01:56.1]} 17... Bf8 {[%clk 0:02:12.2]} 18. Qd2 {[%clk 0:01:54.3]}
18... c5 {[%clk 0:02:09.1]} 19. Nh5 {[%clk 0:01:45.2]} 19... cxd4 {[%clk
0:02:06.9]} 20. Nxd4 {[%clk 0:01:44.5]} 20... Qc5 {[%clk 0:01:56.3]} 21. Nf3
{[%clk 0:01:40.5]} 21... Rac8 {[%clk 0:01:49.9]} 22. Rbc1 {[%clk 0:01:36.4]}
22... Qe7 {[%clk 0:01:44]} 23. g4 {[%clk 0:01:33]} 23... Nc5 {[%clk 0:01:33.8]}
24. Nd4 {[%clk 0:01:33]} 24... Kh7 {[%clk 0:01:16]} 25. Kg2 {[%clk 0:01:32]}
25... g6 {[%clk 0:01:15.3]} 26. Ng3 {[%clk 0:01:30.9]} 26... Bg7 {[%clk
0:01:14.5]} 27. h4 {[%clk 0:01:23.1]} 27... Nb3 {[%clk 0:00:41.3]} 28. Nxb3
{[%clk 0:01:22.7]} 28... axb3 {[%clk 0:00:42.2]} 29. d4 {[%clk 0:01:12.2]} 29...
Rc4 {[%clk 0:00:38.1]} 30. h5 {[%clk 0:01:07.4]} 30... g5 {[%clk 0:00:35.9]} 31.
Qd3+ {[%clk 0:01:05.9]} 31... Kg8 {[%clk 0:00:35.5]} 32. Bd2 {[%clk 0:01:01.3]}
32... b5 {[%clk 0:00:33.2]} 33. Nf1 {[%clk 0:00:52.7]} 33... Nc7 {[%clk
0:00:32]} 34. Ne3 {[%clk 0:00:52.9]} 34... Na6 {[%clk 0:00:31.2]} 35. Bc3 {[%clk
0:00:47.7]} 35... Qb7 {[%clk 0:00:28.8]} 36. Qd1 {[%clk 0:00:46.6]} 36... b4
{[%clk 0:00:28.2]} 37. axb4 {[%clk 0:00:46.2]} 37... Nxb4 {[%clk 0:00:28.8]} 38.
Nxc4 {[%clk 0:00:25.6]} 38... dxc4+ {[%clk 0:00:27.8]} 39. Qf3 {[%clk
0:00:26.5]} 39... Qxf3+ {[%clk 0:00:27.1]} 40. Kxf3 {[%clk 0:00:27.4]} 40... Nd3
{[%clk 0:00:27.5]} 41. Ra1 {[%clk 0:00:22.3]} 41... Nxe1+ {[%clk 0:00:27.1]} 42.
Rxe1 {[%clk 0:00:22.9]} 42... Ra8 {[%clk 0:00:26.3]} 43. Ke4 {[%clk 0:00:23.4]}
43... Kf8 {[%clk 0:00:25.5]} 44. d5 {[%clk 0:00:23.8]} 44... exd5+ {[%clk
0:00:24.8]} 45. Kxd5 {[%clk 0:00:24.7]} 45... Rc8 {[%clk 0:00:22.5]} 46. Re4
{[%clk 0:00:24]} 46... Ke7 {[%clk 0:00:20.2]} 47. Rxc4 {[%clk 0:00:24.2]} 47...
Rd8+ {[%clk 0:00:20.1]} 48. Ke4 {[%clk 0:00:24.2]} 48... Rd1 {[%clk 0:00:20]}
49. Rc7+ {[%clk 0:00:24.1]} 49... Ke6 {[%clk 0:00:19.6]} 50. Rc6+ {[%clk
0:00:24.5]} 50... Kd7 {[%clk 0:00:19.6]} 51. Rb6 {[%clk 0:00:22.2]} 51... Bf8
{[%clk 0:00:19.1]} 52. Rxb3 {[%clk 0:00:21.4]} 52... Bc5 {[%clk 0:00:20]} 53.
Rb7+ {[%clk 0:00:21.6]} 53... Ke6 {[%clk 0:00:20.1]} 54. f4 {[%clk 0:00:20.6]}
54... gxf4 {[%clk 0:00:19.2]} 55. Kxf4 {[%clk 0:00:21.4]} 55... Rf1+ {[%clk
0:00:19.9]} 56. Ke4 {[%clk 0:00:21.4]} 56... Rg1 {[%clk 0:00:20.7]} 57. Kf3
{[%clk 0:00:21.5]} 57... Rf1+ {[%clk 0:00:20.4]} 58. Ke4 {[%clk 0:00:21.9]}
58... Rg1 {[%clk 0:00:20.4]} 59. Kf4 {[%clk 0:00:21.7]} 59... Rf1+ {[%clk
0:00:20.5]} 60. Kg3 {[%clk 0:00:22.2]} 60... Rg1+ {[%clk 0:00:21]} 61. Kh3
{[%clk 0:00:22.3]} 61... Rh1+ {[%clk 0:00:21.1]} 62. Kg2 {[%clk 0:00:22.9]}
62... Rg1+ {[%clk 0:00:22]} 63. Kf3 {[%clk 0:00:23.4]} 63... Rf1+ {[%clk
0:00:21.8]} 64. Ke2 {[%clk 0:00:23.9]} 64... Rg1 {[%clk 0:00:21.2]} 65. Rc7
{[%clk 0:00:23.5]} 65... Rg2+ {[%clk 0:00:18.5]} 66. Kf3 {[%clk 0:00:22.6]}
66... Rf2+ {[%clk 0:00:18.6]} 67. Kg3 {[%clk 0:00:23.2]} 67... Kd5 {[%clk
0:00:18.8]} 68. Rxc5+ {[%clk 0:00:23.2]} 1-0

[Event "*** Titled Tuesday Blitz"]
[Site "Chess.com"]
[Date "2021.04.20"]
[Round "2"]
[White "WPWPWP-2015"]
[Black "bricolageur"]
[Result "1-0"]
[WhiteElo "2461"]
[BlackElo "2241"]
[TimeControl "180+1"]
[EndTime "10:18:36 PDT"]
[Termination "WPWPWP-2015 won by resignation"]

1. e4 {[%clk 0:03:00.9]} 1... e5 {[%clk 0:03:00.1]} 2. Nf3 {[%clk 0:03:00.1]}
2... Nc6 {[%clk 0:03:00.6]} 3. Bc4 {[%clk 0:02:58]} 3... Nf6 {[%clk 0:03:00.1]}
4. d3 {[%clk 0:02:57.5]} 4... h6 {[%clk 0:03:00]} 5. O-O {[%clk 0:02:57]} 5...
d6 {[%clk 0:02:59]} 6. h3 {[%clk 0:02:55.6]} 6... g5 {[%clk 0:02:58.6]} 7. Nh2
{[%clk 0:02:51.9]} 7... Bg7 {[%clk 0:02:49.9]} 8. c3 {[%clk 0:02:50.9]} 8... d5
{[%clk 0:02:29.2]} 9. exd5 {[%clk 0:02:49.6]} 9... Nxd5 {[%clk 0:02:30.1]} 10.
d4 {[%clk 0:02:44.9]} 10... exd4 {[%clk 0:02:14.8]} 11. Re1+ {[%clk 0:02:44.6]}
11... Kf8 {[%clk 0:02:06.9]} 12. cxd4 {[%clk 0:02:38.8]} 12... Nxd4 {[%clk
0:01:59.9]} 13. Nc3 {[%clk 0:02:21.9]} 13... Nxc3 {[%clk 0:01:42.8]} 14. bxc3
{[%clk 0:02:19.4]} 14... Be6 {[%clk 0:01:43.4]} 15. Ba3+ {[%clk 0:02:14]} 15...
Kg8 {[%clk 0:01:43.2]} 16. Bxe6 {[%clk 0:01:54.3]} 16... Nxe6 {[%clk 0:01:43.2]}
17. Qf3 {[%clk 0:01:54.4]} 17... c6 {[%clk 0:01:34.3]} 18. Ng4 {[%clk
0:01:46.4]} 18... h5 {[%clk 0:01:20.6]} 19. Ne5 {[%clk 0:01:43.3]} 19... Qf6
{[%clk 0:01:16.9]} 20. Qe4 {[%clk 0:01:34.6]} 20... Qxe5 {[%clk 0:00:59.3]} 21.
Qxe5 {[%clk 0:01:32.5]} 21... Bxe5 {[%clk 0:01:00.2]} 22. Rxe5 {[%clk
0:01:32.3]} 22... Rd8 {[%clk 0:00:59.3]} 23. Be7 {[%clk 0:01:21.4]} 23... Rd5
{[%clk 0:00:49.1]} 24. Rxd5 {[%clk 0:01:21.2]} 24... cxd5 {[%clk 0:00:50]} 25.
Rd1 {[%clk 0:01:19.6]} 25... Kg7 {[%clk 0:00:47.5]} 26. Rxd5 {[%clk 0:01:17.4]}
26... Rc8 {[%clk 0:00:39.2]} 27. Ba3 {[%clk 0:00:49.1]} 27... Kg6 {[%clk
0:00:34.3]} 28. Bb2 {[%clk 0:00:46.2]} 28... Rc6 {[%clk 0:00:17.2]} 29. Kh2
{[%clk 0:00:40.7]} 29... Ra6 {[%clk 0:00:14.2]} 30. a3 {[%clk 0:00:40.6]} 30...
Rb6 {[%clk 0:00:14.3]} 31. Bc1 {[%clk 0:00:40.3]} 31... Rb3 {[%clk 0:00:14.5]}
32. c4 {[%clk 0:00:39.1]} 32... Rc3 {[%clk 0:00:14.3]} 33. Be3 {[%clk
0:00:38.2]} 33... Rxa3 {[%clk 0:00:11.8]} 34. Rd7 {[%clk 0:00:37.7]} 34... Rb3
{[%clk 0:00:11.9]} 35. Bxa7 {[%clk 0:00:35.9]} 35... Rb4 {[%clk 0:00:10.8]} 36.
h4 {[%clk 0:00:31.5]} 36... g4 {[%clk 0:00:09.3]} 37. Be3 {[%clk 0:00:29.7]}
37... Rxc4 {[%clk 0:00:07.5]} 38. Rxb7 {[%clk 0:00:29.4]} 38... Rc2 {[%clk
0:00:07.5]} 39. Rb5 {[%clk 0:00:28.3]} 39... Rc6 {[%clk 0:00:05]} 40. g3 {[%clk
0:00:27.7]} 40... Kf6 {[%clk 0:00:02.9]} 41. Rxh5 {[%clk 0:00:25.9]} 41... Kg6
{[%clk 0:00:03.3]} 42. Rb5 {[%clk 0:00:22.9]} 42... Rc2 {[%clk 0:00:02.6]} 43.
Kg2 {[%clk 0:00:22.2]} 43... f5 {[%clk 0:00:01.4]} 44. h5+ {[%clk 0:00:20.2]}
44... Kxh5 {[%clk 0:00:01.3]} 45. Rxf5+ {[%clk 0:00:19.5]} 45... Kg6 {[%clk
0:00:02.2]} 46. Re5 {[%clk 0:00:19.3]} 46... Kf6 {[%clk 0:00:02.2]} 47. Re4
{[%clk 0:00:19.5]} 47... Kf5 {[%clk 0:00:02.8]} 48. Ra4 {[%clk 0:00:19.3]} 48...
Rc6 {[%clk 0:00:02.6]} 49. Ra5+ {[%clk 0:00:19]} 49... Kf6 {[%clk 0:00:03.1]}
50. Ra4 {[%clk 0:00:19.2]} 50... Kf5 {[%clk 0:00:04]} 51. Rb4 {[%clk 0:00:19.1]}
51... Rd6 {[%clk 0:00:03.9]} 52. Rb8 {[%clk 0:00:19]} 52... Kf6 {[%clk 0:00:04]}
53. Rh8 {[%clk 0:00:18.8]} 53... Kf5 {[%clk 0:00:04.9]} 54. Rh5+ {[%clk
0:00:18.6]} 54... Kf6 {[%clk 0:00:05.4]} 55. Rh6+ {[%clk 0:00:18.5]} 55... Kf5
{[%clk 0:00:06.1]} 56. Rh7 {[%clk 0:00:18.3]} 56... Kf6 {[%clk 0:00:06.5]} 57.
Rh8 {[%clk 0:00:18.2]} 57... Kf5 {[%clk 0:00:07]} 58. Rg8 {[%clk 0:00:18.6]}
58... Rd5 {[%clk 0:00:06.8]} 59. Kf1 {[%clk 0:00:17.6]} 59... Rd3 {[%clk
0:00:06.8]} 60. Ke2 {[%clk 0:00:17.4]} 60... Rb3 {[%clk 0:00:07.7]} 61. Rh8
{[%clk 0:00:16.7]} 61... Rb2+ {[%clk 0:00:08.1]} 62. Kd3 {[%clk 0:00:16.1]}
62... Rb3+ {[%clk 0:00:09]} 63. Kc4 {[%clk 0:00:16.1]} 63... Rb7 {[%clk
0:00:09.2]} 64. Rh5+ {[%clk 0:00:15.5]} 64... Kg6 {[%clk 0:00:09.1]} 65. Rd5
{[%clk 0:00:15.5]} 65... Rc7+ {[%clk 0:00:08.7]} 66. Kd3 {[%clk 0:00:15.7]}
66... Kf6 {[%clk 0:00:09.2]} 67. Ra5 {[%clk 0:00:15.3]} 67... Rb7 {[%clk
0:00:08.5]} 68. Ra4 {[%clk 0:00:14.6]} 68... Rb3+ {[%clk 0:00:08.2]} 69. Kc2
{[%clk 0:00:14.3]} 69... Rb5 {[%clk 0:00:08.1]} 70. Rxg4 {[%clk 0:00:14.1]}
70... Rf5 {[%clk 0:00:08.3]} 71. Rc4 {[%clk 0:00:13.6]} 71... Rd5 {[%clk
0:00:08.3]} 1-0